Workbook

Sheet Лист1
A1: Школа | C1: МБОУ Большекукморская средняя школа им. М.М.Мансурова | F1: Утвердил: | G1: должность | H1: Директор
A2: Типовое примерное меню приготавливаемых блюд | G2: фамилия | H2: Хакимуллин А.М.
A3: Возрастная категория | E3: 7-11 лет | G3: дата | H3: 16 | I3: 9 | J3: 2024
H4: день | I4: месяц | J4: год
A5: Неделя | B5: День недели | C5: Прием пищи | D5: Раздел меню | E5: Блюда | F5: Вес блюда, г | G5: Белки | H5: Жиры | I5: Углеводы | J5: Калорийность | K5: № рецептуры | L5: Цена
A6: 1 | B6: 1 | C6: Завтрак | D6: 2 блюдо | E6: фрикадельки в соусе | F6: 55/50 | G6: 8.33 | H6: 7.743 | I6: 3.194 | J6: 175 | K6: 280/2015 | L6: 28.21
D7: гор.напиток | E7: чай с сахаром | F7: 200/15 | G7: 0.53 | H7: 0 | I7: 9.47 | J7: 40 | K7: 376/2015 | L7: 1.65
D8: хлеб бел. | E8: пшеничный | F8: 20 | G8: 1.52 | H8: 0.16 | I8: 9.8 | J8: 47.32 | L8: 1.28
D9: хлеб черн. | E9: ржано-пшеничный | F9: 20 | G9: 1 | H9: 0.2 | I9: 9 | J9: 44 | L9: 1.28
D10: фрукты
D11: гарнир | E11: макаронные изделия отварные с маслом | F11: 150/5 | G11: 5.1 | H11: 4.468 | I11: 28.5 | J11: 187 | K11: 203/2015 | L11: 6.41
D12: закуска | E12: салат из моркови с сахаром | F12: 60 | G12: 0.516 | H12: 2.132 | I12: 4.45 | J12: 50 | K12: 62/2015 | L12: 2.73
D13: итого | F13: =SUM(F6:F12) -> 100 | G13: =SUM(G6:G12) -> 16.996 | H13: 14.703 | I13: 64.414 | J13: 543.32 | K13: 0 | L13: 41.56
A14: =A6 -> 1 | B14: =B6 -> 1 | C14: Завтрак 2 | D14: гор. блюдо | E14: каша молочная (рисовая) | F14: 150 | G14: 3.9 | H14: 5.8 | I14: 31.4 | J14: 193.9 | K14: 182/2015 | L14: 13.18
D15: гор.напиток | E15: компот из смеси сухофруктов | F15: 200 | G15: 0 | H15: 0 | I15: 14.6 | J15: 58.1 | K15: 349/2015 | L15: 3.45
D16: хлеб бел. | E16: пшеничный | F16: 40 | G16: 3.04 | H16: 0.32 | I16: 19.6 | J16: 94.6 | L16: 2.56
D17: итого | F17: =SUM(F14:F16) -> 390 | G17: =SUM(G14:G16) -> 6.94 | H17: 6.12 | I17: 65.6 | J17: 346.6 | K17: 0 | L17: 19.19
A18: =A6 -> 1 | B18: =B6 -> 1 | C18: Обед | D18: закуска
D19: 1 блюдо
D20: 2 блюдо
D21: гарнир
D22: напиток
D23: хлеб бел.
D24: хлеб черн.
D27: итого | F27: =SUM(F18:F26) -> 0 | G27: =SUM(G18:G26) -> 0 | H27: 0 | I27: 0 | J27: 0 | L27: =SUM(L24:L32) -> 0
A28: =A6 -> 1 | B28: =B6 -> 1 | C28: Полдник | D28: булочное | E28: Кондитерские изделия (печенье) | F28: 40 | G28: 2.9 | H28: 3.7 | I28: 28.8 | J28: 161.7 | K28: 2008 | L28: 3.6
D29: напиток | E29: кисель | F29: 200 | G29: 0 | H29: 0 | I29: 25.1 | J29: 221.7 | K29: 411/2015 | L29: 3.1
D32: итого | F32: =SUM(F28:F31) -> 240 | G32: =SUM(G28:G31) -> 2.9 | H32: 3.7 | I32: 53.9 | J32: 383.4 | K32: 2008 | L32: 6.7
A33: =A6 -> 1 | B33: =B6 -> 1 | C33: Ужин | D33: гор.блюдо
D34: гарнир
D35: напиток
D36: хлеб
D39: итого | F39: =SUM(F33:F38) -> 0 | G39: =SUM(G33:G38) -> 0 | H39: 0 | I39: 0 | J39: 0 | L39: =SUM(L33:L41) -> 0
A40: =A6 -> 1 | B40: =B6 -> 1 | C40: Ужин 2 | D40: кисломол.
D41: булочное
D42: напиток
D43: фрукты
D46: итого | F46: =SUM(F40:F45) -> 0 | G46: =SUM(G40:G45) -> 0 | H46: 0 | I46: 0 | J46: 0 | L46: =SUM(L40:L54) -> 0
A47: =A6 -> 1 | B47: =B6 -> 1 | C47: Итого за день: | F47: =F13+F17+F27+F32+F39+F46 -> 730 | G47: =G13+G17+G27+G32+G39+G46 -> 26.836 | H47: =H13+H17+H27+H32+H39+H46 -> 24.523 | I47: =I13+I17+I27+I32+I39+I46 -> 183.914 | J47: =J13+J17+J27+J32+J39+J46 -> 1273.32 | K47: =K13+K17+K27+K32+K39+K46 -> 2008 | L47: 67.45
A48: 1 | B48: 2 | C48: Завтрак | D48: гор.блюдо | E48: мясо тушеное | F48: 50/50 | G48: 10.5 | H48: 11.03 | I48: 3.184 | J48: 196 | L48: 47.98
D49: гор.напиток | E49: какао с молоком | F49: 200 | G49: 3.78 | H49: 0.67 | I49: 26 | J49: 125 | K49: 382/2015 | L49: 10.12
D50: хлеб бел. | E50: пшеничный | F50: 20 | G50: 1.52 | H50: 0.16 | I50: 9.8 | J50: 47.32 | L50: 1.28
D51: хлеб черн. | E51: ржано-пшеничный | F51: 20 | G51: 1 | H51: 0.2 | I51: 9 | J51: 44 | L51: 1.28
D52: фрукты
D53: закуска | E53: салат из белокочанной капусты | F53: 60 | G53: 0.78 | H53: 1.94 | I53: 3.87 | J53: 36 | K53: 345/2015 | L53: 2.58
D54: гарнир | E54: каша вязкая (гречневая) | F54: 150 | G54: 6.662 | H54: 9.024 | I54: 34 | J54: 170 | L54: 7.41
D55: итого | F55: =SUM(F48:F54) -> 450 | G55: =SUM(G48:G54) -> 24.242 | H55: =SUM(H48:H54) -> 23.024 | I55: 85.854 | J55: 618.32 | K55: =SUM(K48:K54) -> 0 | L55: =SUM(L48:L54) -> 70.65
A56: =A48 -> 1 | B56: =B48 -> 2 | C56: Завтрак 2 | D56: гор.блюдо | E56: суп картофельный с геркулесом на мясо-костном бульоне | F56: 250 | G56: 4.5 | H56: 2.6 | I56: 15.2 | J56: 103 | K56: 98/2008 | L56: 11.37
D57: гор.напиток | E57: чай с сахаром | F57: 200/15 | G57: 0.53 | H57: 0 | I57: 9.47 | J57: 40 | K57: 376/2015 | L57: 1.65
D58: хлеб черн. | E58: ржано-пшеничный | F58: 40 | G58: 2 | H58: 0.4 | I58: 18 | J58: 88 | L58: 2.56
D59: итого | F59: =SUM(F56:F58) -> 290 | G59: =SUM(G56:G58) -> 7.03 | H59: 3 | I59: 42.67 | J59: 231 | K59: 0 | L59: =SUM(L56:L58) -> 15.58
A60: =A48 -> 1 | B60: =B48 -> 2 | C60: Обед | D60: закуска
D61: 1 блюдо
D62: 2 блюдо
D63: гарнир
D64: напиток
D65: хлеб бел.
D66: хлеб черн.
D69: итого | F69: =SUM(F60:F68) -> 0 | G69: =SUM(G60:G68) -> 0 | H69: =SUM(H60:H68) -> 0 | I69: =SUM(I60:I68) -> 0 | J69: =SUM(J60:J68) -> 0 | L69: =SUM(L66:L74) -> 0
A70: =A48 -> 1 | B70: =B48 -> 2 | C70: Полдник | D70: булочное | E70: Кондитерские изделия (пряники) | F70: 40 | G70: 2.4 | H70: 1.9 | I70: 30 | J70: 146.4 | K70: 2008 | L70: 4
D71: напиток | E71: компот из смеси сухофруктов | F71: 200 | G71: 0 | H71: 0 | I71: 14.6 | J71: 58.1 | K71: 349/2015 | L71: 4.25
D74: итого | F74: =SUM(F70:F73) -> 240 | G74: =SUM(G70:G73) -> 2.4 | H74: 1.9 | I74: 44.6 | J74: 204.5 | L74: 8.25
A75: =A48 -> 1 | B75: =B48 -> 2 | C75: Ужин | D75: гор.блюдо
D76: гарнир
D77: напиток
D78: хлеб
D81: итого | F81: =SUM(F75:F80) -> 0 | G81: =SUM(G75:G80) -> 0 | H81: =SUM(H75:H80) -> 0 | I81: =SUM(I75:I80) -> 0 | J81: =SUM(J75:J80) -> 0 | L81: =SUM(L75:L83) -> 0
A82: =A48 -> 1 | B82: =B48 -> 2 | C82: Ужин 2 | D82: кисломол.
D83: булочное
D84: напиток
D85: фрукты
D88: итого | F88: =SUM(F82:F87) -> 0 | G88: =SUM(G82:G87) -> 0 | H88: =SUM(H82:H87) -> 0 | I88: =SUM(I82:I87) -> 0 | J88: =SUM(J82:J87) -> 0 | L88: =SUM(L82:L90) -> 0
A89: =A48 -> 1 | B89: =B48 -> 2 | C89: Итого за день: | F89: =F55+F59+F69+F74+F81+F88 -> 980 | G89: =G55+G59+G69+G74+G81+G88 -> 33.672 | H89: =H55+H59+H69+H74+H81+H88 -> 27.924 | I89: =I55+I59+I69+I74+I81+I88 -> 173.124 | J89: =J55+J59+J69+J74+J81+J88 -> 1053.82 | L89: =SUM(L55,L59,L74) -> 94.48
A90: 1 | B90: 3 | C90: Завтрак | D90: гор.блюдо | E90: рагу из птицы | F90: 50/150 | G90: 12.3 | H90: 17.66 | I90: 29.85 | J90: 313 | K90: 289/2015 | L90: 32.27
D91: гор.напиток | E91: кофейный напиток с молоком | F91: 200 | G91: 3.6 | H91: 2.67 | I91: 29.2 | J91: 155 | K91: 379/2015 | L91: 10.95
D92: хлеб бел. | E92: пшеничный | F92: 20 | G92: 1.52 | H92: 0.16 | I92: 9.8 | J92: 47.32 | L92: 1.28
D93: хлеб черн. | E93: ржано-пшеничный | F93: 20 | G93: 1 | H93: 0.2 | I93: 9 | J93: 44 | L93: 1.28
D94: фрукты
D95: гарнир
D96: закуска | E96: салат из свеклы отварной | F96: 60 | G96: 0.855 | H96: 3.653 | I96: 11.58 | J96: 56 | K96: 52/2015 | L96: 2.66
D97: итого | F97: =SUM(F90:F96) -> 300 | G97: =SUM(G90:G96) -> 19.275 | H97: 24.343 | I97: 89.43 | J97: 615.32 | L97: =SUM(L90:L96) -> 48.44
A98: =A90 -> 1 | B98: =B90 -> 3 | C98: Завтрак 2 | D98: гор.блюдо | E98: каша пшеничная | F98: 150 | G98: 5.1 | H98: 6 | I98: 27.5 | J98: 184 | K98: 189/2008 | L98: 10.27
D99: гор.напиток | E99: чай с сахаром | F99: 200/15 | G99: 0.53 | H99: 0 | I99: 9.47 | J99: 40 | K99: 376/2015 | L99: 1.65
D100: хлеб черн. | E100: пшеничный | F100: 40 | G100: 3.04 | H100: 0.32 | I100: 19.6 | J100: 94.6 | L100: 2.56
D101: итого | F101: =SUM(F98:F100) -> 190 | G101: =SUM(G98:G100) -> 8.67 | H101: 6.32 | I101: 56.57 | J101: 318.6 | K101: 0 | L101: =SUM(L98:L100) -> 14.48
A102: =A90 -> 1 | B102: =B90 -> 3 | C102: Обед | D102: закуска
D103: 1 блюдо
D104: 2 блюдо
D105: гарнир
D106: напиток
D107: хлеб бел.
D108: хлеб черн.
D111: итого | F111: =SUM(F102:F110) -> 0 | G111: =SUM(G102:G110) -> 0 | H111: =SUM(H102:H110) -> 0 | I111: =SUM(I102:I110) -> 0 | J111: =SUM(J102:J110) -> 0 | L111: =SUM(L108:L116) -> 0
A112: =A90 -> 1 | B112: =B90 -> 3 | C112: Полдник | D112: булочное | E112: бутерброд с маслом | F112: 40/7 | G112: 3 | H112: 6 | I112: 19.6 | J112: 144.3 | K112: 1/2015 | L112: 7.81
D113: напиток | E113: чай с сахаром | F113: 200/15 | G113: 0.53 | H113: 0 | I113: 9.47 | J113: 40 | K113: 376/2015 | L113: 1.65
D116: итого | F116: =SUM(F112:F115) -> 0 | G116: =SUM(G112:G115) -> 3.53 | H116: 6 | I116: 29.07 | J116: 184.3 | K116: 0 | L116: 9.46
A117: =A90 -> 1 | B117: =B90 -> 3 | C117: Ужин | D117: гор.блюдо
D118: гарнир
D119: напиток
D120: хлеб
D123: итого | F123: =SUM(F117:F122) -> 0 | G123: =SUM(G117:G122) -> 0 | H123: =SUM(H117:H122) -> 0 | I123: =SUM(I117:I122) -> 0 | J123: =SUM(J117:J122) -> 0 | L123: =SUM(L117:L125) -> 0
A124: =A90 -> 1 | B124: =B90 -> 3 | C124: Ужин 2 | D124: кисломол.
D125: булочное
D126: напиток
D127: фрукты
D130: итого | F130: =SUM(F124:F129) -> 0 | G130: =SUM(G124:G129) -> 0 | H130: =SUM(H124:H129) -> 0 | I130: =SUM(I124:I129) -> 0 | J130: =SUM(J124:J129) -> 0 | L130: =SUM(L124:L132) -> 0
A131: =A90 -> 1 | B131: =B90 -> 3 | C131: Итого за день: | F131: =F97+F101+F111+F116+F123+F130 -> 490 | G131: =G97+G101+G111+G116+G123+G130 -> 31.475 | H131: =H97+H101+H111+H116+H123+H130 -> 36.663 | I131: =I97+I101+I111+I116+I123+I130 -> 175.07 | J131: =J97+J101+J111+J116+J123+J130 -> 1118.22 | L131: =SUM(L97,L101,L116) -> 72.38
A132: 1 | B132: 4 | C132: Завтрак | D132: 2 блюдо | E132: котлеты | F132: 90 | G132: 13.67 | H132: 13.671 | I132: 8.7 | J132: 209.6 | K132: 268/2015 | L132: 43.79
D133: гор.напиток | E133: чай с сахаром | F133: 200/15 | G133: 0.53 | H133: 0 | I133: 9.47 | J133: 40 | K133: 376/2015 | L133: 1.65
D134: хлеб бел. | E134: пшеничный | F134: 20 | G134: 1.52 | H134: 0.16 | I134: 9.8 | J134: 47.32 | L134: 1.28
D135: хлеб черн. | E135: ржано-пшеничный | F135: 20 | G135: 1 | H135: 0.2 | I135: 9 | J135: 44 | L135: 1.28
D136: гарнир | E136: пюре картофельное | F136: 150 | G136: 3.09 | H136: 8.282 | I136: 22 | J136: 172 | K136: 312/2015 | L136: 11.61
D137: фрукты
D138: закуска | E138: салат овощной с яблоками | F138: 60 | G138: 3.5 | H138: 6.11 | I138: 9.9 | J138: 124 | K138: 56/2015 | L138: 6.65
D139: итого | F139: =SUM(F132:F138) -> 340 | G139: =SUM(G132:G138) -> 23.31 | H139: 28.423 | I139: 68.87 | J139: 636.92 | K139: 0 | L139: 66.26
A140: =A132 -> 1 | B140: =B132 -> 4 | C140: Завтрак 2 | D140: гор.блюдо | E140: каша манная (молочная) | F140: 150 | G140: 5.1 | H140: 6.075 | I140: 30.8 | J140: 197.55 | K140: 181/2015 | L140: 11.17
D141: гор.напиток | E141: компот из смеси сухофруктов | F141: 200 | G141: 0 | H141: 0 | I141: 14.6 | J141: 58.1 | K141: 349/2015 | L141: 3.45
D142: хлеб черн. | E142: пшеничный | F142: 40 | G142: 3.04 | H142: 0.32 | I142: 19.6 | J142: 94.6 | L142: 2.56
D143: итого | F143: =SUM(F140:F142) -> 390 | G143: =SUM(G140:G142) -> 8.14 | H143: 6.395 | I143: 65 | J143: 350.25 | K143: 0 | L143: 17.18
A144: =A132 -> 1 | B144: =B132 -> 4 | C144: Обед | D144: закуска
D145: 1 блюдо
D146: 2 блюдо
D147: гарнир
D148: напиток
D149: хлеб бел.
D150: хлеб черн.
D153: итого | F153: =SUM(F144:F152) -> 0 | G153: =SUM(G144:G152) -> 0 | H153: =SUM(H144:H152) -> 0 | I153: =SUM(I144:I152) -> 0 | J153: =SUM(J144:J152) -> 0 | L153: =SUM(L150:L158) -> 0
A154: =A132 -> 1 | B154: =B132 -> 4 | C154: Полдник | D154: булочное | E154: Кондитерские изделия (печенье) | F154: 40 | G154: 2.9 | H154: 3.7 | I154: 28.8 | J154: 161.7 | K154: 2008 | L154: 3.6
D155: напиток | E155: чай с сахаром | F155: 200/15 | G155: 0.53 | H155: 0 | I155: 9.47 | J155: 40 | K155: 376/2015 | L155: 1.65
D158: итого | F158: =SUM(F154:F157) -> 40 | G158: =SUM(G154:G157) -> 3.43 | H158: 3.7 | I158: 38.27 | J158: 201.7 | L158: 5.25
A159: =A132 -> 1 | B159: =B132 -> 4 | C159: Ужин | D159: гор.блюдо
D160: гарнир
D161: напиток
D162: хлеб
D165: итого | F165: =SUM(F159:F164) -> 0 | G165: =SUM(G159:G164) -> 0 | H165: =SUM(H159:H164) -> 0 | I165: =SUM(I159:I164) -> 0 | J165: =SUM(J159:J164) -> 0 | L165: =SUM(L159:L167) -> 0
A166: =A132 -> 1 | B166: =B132 -> 4 | C166: Ужин 2 | D166: кисломол.
D167: булочное
D168: напиток
D169: фрукты
D172: итого | F172: =SUM(F166:F171) -> 0 | G172: =SUM(G166:G171) -> 0 | H172: =SUM(H166:H171) -> 0 | I172: =SUM(I166:I171) -> 0 | J172: =SUM(J166:J171) -> 0 | L172: =SUM(L166:L174) -> 0
A173: =A132 -> 1 | B173: =B132 -> 4 | C173: Итого за день: | F173: =F139+F143+F153+F158+F165+F172 -> 770 | G173: =G139+G143+G153+G158+G165+G172 -> 34.88 | H173: =H139+H143+H153+H158+H165+H172 -> 38.518 | I173: =I139+I143+I153+I158+I165+I172 -> 172.14 | J173: =J139+J143+J153+J158+J165+J172 -> 1188.87 | L173: =SUM(L139,L143,L158) -> 88.69
A174: 1 | B174: 5 | C174: Завтрак | D174: 2 блюдо | E174: котлеты рубленные из бройлер-цыплят | F174: 90 | G174: 11.52 | H174: 6.04 | I174: 21.78 | J174: 178.8 | K174: 295/2015 | L174: 27.75
D175: гор.напиток | E175: чай с сахаром | F175: 200/15 | G175: 0.53 | H175: 0 | I175: 9.47 | J175: 40 | K175: 376/2015 | L175: 1.65
D176: хлеб бел. | E176: пшеничный | F176: 20 | G176: 1.52 | H176: 0.16 | I176: 9.8 | J176: 47.32 | L176: 1.28
D177: хлеб черн. | E177: ржано-пшеничный | F177: 20 | G177: 1 | H177: 0.2 | I177: 9 | J177: 44 | L177: 1.28
D178: фрукты
D179: гарнир | E179: рис отварной | F179: 150 | G179: 3.8 | H179: 8.6 | I179: 38.9 | J179: 247 | K179: 304/2015 | L179: 14.54
D180: закуска | E180: салат из моркови с сахаром | F180: 60 | G180: 0.516 | H180: 2.132 | I180: 4.45 | J180: 50 | K180: 62/2015 | L180: 2.73
D181: итого | F181: =SUM(F174:F180) -> 340 | G181: =SUM(G174:G180) -> 18.886 | H181: 17.132 | I181: 93.4 | J181: 607.12 | K181: 0 | L181: 49.23
A182: =A174 -> 1 | B182: =B174 -> 5 | C182: Завтрак 2 | D182: гор.блюдо | E182: борщ с капустой и картофелем на мясо-костном бульоне | F182: 250 | G182: 4.3 | H182: 2 | I182: 13.3 | J182: 91 | K182: 2012 | L182: 13.84
D183: гор.напиток | E183: чай с сахаром | F183: 200/15 | G183: 0.53 | H183: 0 | I183: 9.47 | J183: 40 | K183: 376/2015 | L183: 1.65
D184: хлеб черн. | E184: ржано-пшеничный | F184: 40 | G184: 2 | H184: 0.4 | I184: 18 | J184: 88 | L184: 2.56
D185: итого | F185: =SUM(F182:F184) -> 290 | G185: =SUM(G182:G184) -> 6.83 | H185: 2.4 | I185: 40.77 | J185: 219 | K185: 0 | L185: 18.05
A186: =A174 -> 1 | B186: =B174 -> 5 | C186: Обед | D186: закуска
D187: 1 блюдо
D188: 2 блюдо
D189: гарнир
D190: напиток
D191: хлеб бел.
D192: хлеб черн.
D195: итого | F195: =SUM(F186:F194) -> 0 | G195: =SUM(G186:G194) -> 0 | H195: =SUM(H186:H194) -> 0 | I195: =SUM(I186:I194) -> 0 | J195: =SUM(J186:J194) -> 0 | L195: =SUM(L192:L200) -> 0
A196: =A174 -> 1 | B196: =B174 -> 5 | C196: Полдник | D196: булочное | E196: кондитерские изделия (пряники) | F196: 40 | G196: 2.4 | H196: 1.9 | I196: 30 | J196: 146.4 | K196: 2008 | L196: 4.00
D197: напиток | E197: компот из смеси сухофруктов | F197: 200 | G197: 0 | H197: 0 | I197: 14.6 | J197: 58.1 | K197: 349/2015 | L197: 4.25
D200: итого | F200: =SUM(F196:F199) -> 240 | G200: =SUM(G196:G199) -> 2.4 | H200: 1.9 | I200: 44.6 | J200: 204.5 | K200: 0 | L200: 8.25
A201: =A174 -> 1 | B201: =B174 -> 5 | C201: Ужин | D201: гор.блюдо
D202: гарнир
D203: напиток
D204: хлеб
D207: итого | F207: =SUM(F201:F206) -> 0 | G207: =SUM(G201:G206) -> 0 | H207: =SUM(H201:H206) -> 0 | I207: =SUM(I201:I206) -> 0 | J207: =SUM(J201:J206) -> 0 | L207: =SUM(L201:L209) -> 0
A208: =A174 -> 1 | B208: =B174 -> 5 | C208: Ужин 2 | D208: кисломол.
D209: булочное
D210: напиток
D211: фрукты
D214: итого | F214: =SUM(F208:F213) -> 0 | G214: =SUM(G208:G213) -> 0 | H214: =SUM(H208:H213) -> 0 | I214: =SUM(I208:I213) -> 0 | J214: =SUM(J208:J213) -> 0 | L214: =SUM(L208:L216) -> 0
A215: =A174 -> 1 | B215: =B174 -> 5 | C215: Итого за день: | F215: =F181+F185+F195+F200+F207+F214 -> 870 | G215: =G181+G185+G195+G200+G207+G214 -> 28.116 | H215: 21.432 | I215: 178.77 | J215: 1030.62 | L215: =SUM(L181,L185,L200) -> 75.53
A216: 1 | B216: 6 | C216: Завтрак | D216: гор.блюдо | E216: пельмени мясные отварные | F216: 165/3 | G216: 9 | H216: 10.2 | I216: 18.15 | J216: 213 | K216: 392/2015 | L216: 57.38
D217: гор.напиток | E217: чай с лимоном | F217: 200/15/7 | G217: 0.084 | H217: 0.012 | I217: 15.185 | J217: 62 | K217: 377/2015 | L217: 3.09
D218: хлеб бел. | E218: пшеничный | F218: 30 | G218: 2.28 | H218: 0.24 | I218: 14.76 | J218: 71 | L218: 1.92
D219: хлеб черн. | E219: ржано-пшеничный | F219: 30 | G219: 1.5 | H219: 0.3 | I219: 13.5 | J219: 66 | L219: 1.92
D220: фрукты
D221: закуска | E221: салат из белокочанной капусты | F221: 60 | G221: 0.78 | H221: 1.94 | I221: 3.87 | J221: 36 | K221: 45/2015 | L221: 2.58
D223: итого | F223: =SUM(F216:F222) -> 120 | G223: =SUM(G216:G222) -> 13.644 | H223: 12.692 | I223: 65.465 | J223: 448 | K223: 0 | L223: 66.89
A224: =A216 -> 1 | B224: =B216 -> 6 | C224: Завтрак 2 | D224: гор.блюдо | E224: каша молочная (пшенная) | F224: 150 | G224: 6.4 | H224: 6.7 | I224: 35.6 | J224: 228.3 | K224: 182/2015 | L224: 11.65
D225: гор.напиток | E225: чай с сахаром | F225: 200/15 | G225: 0.53 | H225: 0 | I225: 9.47 | J225: 40 | K225: 376/2015 | L225: 1.65
D226: хлеб черн. | E226: пшеничный | F226: 40 | G226: 3.04 | H226: 0.32 | I226: 19.6 | J226: 94.6 | L226: 2.56
D227: итого | F227: =SUM(F224:F226) -> 190 | G227: =SUM(G224:G226) -> 9.97 | H227: 7.02 | I227: 64.67 | J227: 362.9 | K227: 0 | L227: 15.86
A228: =A216 -> 1 | B228: =B216 -> 6 | C228: Обед | D228: закуска
D229: 1 блюдо
D230: 2 блюдо
D231: гарнир
D232: напиток
D233: хлеб бел.
D234: хлеб черн.
D237: итого | F237: =SUM(F228:F236) -> 0 | G237: =SUM(G228:G236) -> 0 | H237: =SUM(H228:H236) -> 0 | I237: =SUM(I228:I236) -> 0 | J237: =SUM(J228:J236) -> 0 | L237: =SUM(L234:L242) -> 0
A238: =A216 -> 1 | B238: =B216 -> 6 | C238: Полдник | D238: булочное
D239: напиток
D242: итого | F242: =SUM(F238:F241) -> 0 | G242: =SUM(G238:G241) -> 0 | H242: =SUM(H238:H241) -> 0 | I242: =SUM(I238:I241) -> 0 | J242: =SUM(J238:J241) -> 0 | L242: =SUM(L235:L241) -> 0
A243: =A216 -> 1 | B243: =B216 -> 6 | C243: Ужин | D243: гор.блюдо
D244: гарнир
D245: напиток
... 271 more rows
